{"text_format":"1","workbook":"xlsx","n_sheets":6,"sheets":["Wichtige Hinweise","Reisekostenabrechnung","Sonstige Kosten","Tagessätze","AP Auswahlwerte","Sonstige Kosten - Auswahl"],"not_rendered":{"charts":0,"images":2,"macros":1,"external_links":1,"defined_names":23,"comments":1,"pivot_tables":0},"unopened":[],"bounds":{"document_bytes":16777216,"sheet_cells":100000,"rows_first":2000,"rows_last":500,"rows_between":2000,"halvings":0,"cell_chars":16384,"cell_head_chars":4096},"cells_cut":0,"cells_raw":0,"read":"whole","date_system":"1900"}

{"sheet":"Wichtige Hinweise","index":0,"n_rows":52,"n_cols":2,"rows_kept":52,"cut":false,"hidden":true,"merged":[]}
["Hinweise zum Arbeiten mit der Muster-Reisekostenabrechnung"]
[]
[]
["1.","Für die Nutzung dieser Datei setzen wir Excel-Kenntnisse voraus, da u. U. an einigen Stellen Zellen eingefügt oder neu formatiert werden müssen, z. B. "]
[null,"wenn vorhandene  Zellen nicht ausreichen. Generell sind nur Zellen der in BLAUER SCHRIFT gekennzeichneten Spalten Eingabefelder."]
[]
["2.","Vor Nutzung der Reisekostenabrechnung sind in den Zeilen 1 bis 3 die Firmenbezeichnung, Abrechnungszeitraum und Name des Arbeitnehmers einzutragen. "]
[null,"Bitte benennen Sie in den Zeilen 5 und 6 unbedingt mittels der hinterlegten Drop-Down-Menüs Ihre innerbetrieblichen Regelungen zur Abrechnung der "]
[null,"Reisekosten bzw. Ihre Reisekosten-Richtlinien. "]
[]
["3.","In die Spalte F ist das Land einzugeben; bitte beachten Sie, dass wir ein Drop-Down-Menü zur Auswahl hinterlegt haben. Bei Besuch mehrerer Länder "]
[null,"an einem Tag ist der letzte Tätigkeitsort im Ausland maßgebend; bei Flügen Inland - Ausland zählt die Flugzeit zur Auslandszeit."]
[null,"Es werden die ab 1. Januar 2026 geltenden Pauschbeträge berücksichtigt."]
[null,"Für nicht erfasste Länder ist der für Luxemburg geltende Pauschbetrag maßgebend, für nicht erfasste Übersee- und Außengebiete eines Landes"]
[null,"ist der für das Mutterland geltende Pauschbetrag maßgebend."]
[]
["4.","In der Spalte L sind die gefahrenen Kilometer (hin und zurück) einzutragen. Die Reisekosten errechnen sich automatisch in Spalte M unter Berücksichtigung "]
[null,"der derzeit gültigen Kilometerpauschale von 0,38 Euro."]
[]
["5.","In den Spalten N, O und P sind zwingend diejenigen Mahlzeiten zu erfassen, die durch den Arbeitgeber gewährt wurden (z.B. bei Seminarbuchungen,"]
[null,"Übernahme des Frühstücks auf Kosten des Arbeitgebers, Einladungen des Arbeitgebers an Geschäftsfreunde und eigene Mitarbeiter, nicht jedoch bei "]
[null,"Einladungen durch Geschäftspartner). Diese Angaben führen zu der gesetzlich vorgeschriebenen Kürzung der Tagespauschalen in den einschlägigen Fällen."]
[]
["6.","In den Spalten R bis U können Hotelrechnungen abgebildet werden; Spalte Q ergibt dann die Gesamt- bzw. Kontrollsumme. In Spalte U sollen diejenigen"]
[null,"Kosten eingetragen werden, die nicht vom Arbeitgeber übernommen werden; diese Angabe führt nicht zu einer Erstattung durch den Arbeitgeber."]
[]
["7.","Sonstige bei der Reise tatsächlich angefallenen Kosten sind in dem Tabellenblatt \"Sonstige Kosten\" zu erfassen; sie werden automatisch in den "]
[null,"Abrechnungsteil der Reisekostenabrechnung übernommen."]
[]
["8.","Im unteren Teil links finden Sie den Abrechnungsteil der Reisekostenabrechnung. Dort sind der Name des Prüfenden und ggf. geleistete Vorschüsse "]
[null,"anzugeben (ebenfalls blau gekennzeichnet)."]
[]
["9.","Im unteren Teil rechts finden Sie den Auszahlungsteil der Reisekostenabrechnung. Geben Sie dort das Erstellungsdatum der Reisekostenabrechnung an. "]
[null,"Im Fall der Arbeitgebererstattung kreuzen Sie bitte die Art der Auszahlung an. Die Abrechnung ist abschließend vom Mitarbeiter und vom Arbeitgeber an "]
[null,"den vorgesehenen Stellen zu datieren und zu unterzeichnen."]
[]
["10.","Es handelt sich hierbei nur um einen Vorschlag für eine Reisekostenabrechnung. Selbstverständlich können Sie gewünschte Änderungen und Anpassungen "]
[null,"vornehmen. Gerne nehmen wir auch Ihre Verbesserungsvorschläge und Anregungen entgegen."]
[]
["11.","Die Nutzung dieses Formblatts erfolgt auf eigenes Risiko des Nutzers. Für die Korrektheit der Formeln und Berechnungen wird keine Haftung übernommen, "]
[null,"insbesondere vor dem Hintergrund der jeder Zeit möglichen, vollumfänglichen Abänderung durch den Nutzer."]
[]
["12.","Eine berufliche Auswärtstätigkeit liegt ab dem 1.1.2014 nur außerhalb der ersten Tätigkeitsstätte vor. Jeder Arbeitnehmer kann maximal eine erste"]
[null,"Tätigkeitsstätte haben, für die die Kriterien einer ortsfesten betrieblichen Einrichtung und der dauerhaften Zuordnung zu diesem Ort erfüllt sein müssen."]
[]
[null,"Bitte beachten Sie, dass auch der dauerhafte Einsatz beim Kunden oder sonstigen Dritten zu einer ersten Tätigkeitsstätte führen kann."]
[]
[null,"Für Fragen zur Einordnung der ersten Tätigkeitsstätte bzw. zu Gestaltungsmöglichkeiten des Arbeitgebers im Rahmen seines Direktionsrechtes "]
[null,"nehmen Sie gerne Rücksprache mit uns auf."]
[]
[]
["Ein Service Ihrer VTP Vesper Tielkes Partners Steuerberatungsgesellschaft"]

{"sheet":"Reisekostenabrechnung","index":1,"n_rows":53,"n_cols":27,"rows_kept":53,"cut":false,"hidden":false,"merged":[[52,1,52,4],[7,7,7,8],[9,6,10,6],[7,11,9,11],[8,8,9,8],[39,1,39,7],[51,1,51,4],[50,1,50,2],[48,3,48,6],[8,5,9,5],[7,1,7,5],[37,0,37,1],[0,1,0,25],[2,1,2,25],[1,1,1,25],[4,7,4,8],[4,1,4,6],[4,14,4,19],[4,20,4,25],[9,26,10,26],[10,24,10,25],[8,19,10,19],[8,17,10,17],[7,9,8,10],[9,9,10,9],[9,10,10,10],[7,17,7,21],[7,14,9,16],[8,20,10,20],[8,18,10,18],[8,21,10,21],[8,22,10,22],[8,23,10,23],[5,20,5,24],[5,14,5,19],[7,24,9,25],[47,3,47,6],[49,22,50,25],[40,22,40,25],[42,22,42,25],[43,22,43,25],[44,22,46,25],[47,22,48,25],[41,22,41,25],[39,22,39,25],[45,15,46,15],[44,20,46,21],[47,20,48,21],[49,20,50,21]]}
[null,"Firmennamen und Anschrift eingeben"]
[null,"Reisekostenabrechnung MM / 2026"]
[null,"Arbeitnehmer: Name eingeben"]
[]
[null,"Sollen Verpflegungspauschalen an den Arbeitnehmer gezahlt werden?",null,null,null,null,null,"BITTE AUSWÄHLEN",null,null,null,null,null,null,"Werden Kosten für veranlasste Mahlzeiten erstattet?  ",null,null,null,null,null,"BITTE AUSWÄHLEN"]
[null,null,null,null,null,null,null,null,null,null,null,null,null,null,"Wie erfolgt Versteuerung steuerpflichtiger Mahlzeiten?",null,null,null,null,null,"BITTE AUSWÄHLEN"]
[]
[null,"Daten in jeder Spalte einzutragen (auch bei 1-tägiger Reise)",null,null,null,null,"Reiseziel","Verpflegungssatz",null,"Abwesenheit\n(nur für Berechnungszwecke)",null,"Verpfle-\ngungspau-\nschale","Gefahrene","Kilometer","Vom Arbeitgeber veranlasste Mahlzeiten: \nAnzahl bitte eintragen!\n",null,null,"Hotel-/Veranstaltungsrechnung",null,null,null,null,null,null,"Erstattung pauschaler Übernachtungs-\nkosten?\n"]
["Reisezweck","Datum","Uhrzeit","Datum","Uhrzeit","Über-nachtung",null,null,"An-/Abreisetag\nund > 8 Std.",null,null,null,"Kilometer","pauschale",null,null,null,"Gesamt-\nbetrag\n(brutto)","Übernach-\ntungs-\nkosten","Rngs.-\nanteil f. Mahlzeiten\n/ pauschal, wenn inkl.","Sonstige \nHotel-\nkosten ","Private Kosten (nicht vom Arbeitgeber erstattbar)","Mahlzeiten \nKürzungs-\nbetrag VMA \n","Mahlzeiten \nVersteuerungsbetrag \nSachbezug\n"]
[null,"Beginn","Beginn","Ende","Ende",null,"Land (eventuell auch Stadt)","ab 24 Std.",null,"Anzahl Tage\n> 24 Std.","Anzahl 8-24 Std.",null,null,"Kfz",null,null,null,null,null,null,null,null,null,null,null,null,"Anzahl Über-\nnachtungen"]
[null,"TT.MM.JJ","hh,mm","TT.MM.JJ","hh,mm","JA / NEIN",null,"€","€",null,null,"€",null,{"$f":"IF($N$10='AP Auswahlwerte'!$A$12,'AP Auswahlwerte'!$B$12,IF(N10='AP Auswahlwerte'!$A$13,'AP Auswahlwerte'!$B$13,0))","v":0.3},"Früh-stück","Mittag-essen","Abend-essen",null,null,null,null,null,null,null,"JA / NEIN \n"]
[null,null,null,null,null,null,"Deutschland",{"$f":"VLOOKUP(G12,Tagessätze!A$4:D$238,2,FALSE)","v":28},{"$f":"VLOOKUP(G12,Tagessätze!A$4:D$238,3,FALSE)","v":14},{"$f":"IF(D12-B12>1,D12-B12-1,0)","v":0},{"$f":"IF(B12=\"\",0,IF(D12=B12,IF(E12-C12>8,1,0),IF(F12=\"JA\",2,IF(24-C12+E12>8,1,0))))","v":0},{"$f":"IF(B12=\"\",\"\",IF($H$5=\"BITTE AUSWÄHLEN\",\"Wahl fehlt\",IF($H$5=\"JA\",(H12*J12+I12*K12),0)))","v":""},null,{"$f":"M12*$N$11","v":0},null,null,null,{"$f":"SUM(S12:V12)","v":0},null,null,null,null,{"$f":"IF(B12=\"\",\"\",IF(Reisekostenabrechnung!$U$5=JA,\"Auswahl fehlt\",IF($U$5='AP Auswahlwerte'!$I$3,MIN(L12,(Reisekostenabrechnung!O12*0.2*Reisekostenabrechnung!$H12+Reisekostenabrechnung!P12*0.4*Reisekostenabrechnung!$H12+0.4*Reisekostenabrechnung!$H12*Reisekostenabrechnung!Q12)),IF(T12='AP Auswahlwerte'!$P$2,IF(L12>0,MIN(L12,Reisekostenabrechnung!H12*(0.2*Reisekostenabrechnung!O12+0.4*Reisekostenabrechnung!P12+0.4*Reisekostenabrechnung!Q12)),0),0))))","v":""},{"$f":"IF(B12=\"\",\"\",IF(L12=0,IF($U$5='AP Auswahlwerte'!$I$2,IF(T12<>\"PAUSCHAL\",0,(O12*'AP Auswahlwerte'!$D$3+'AP Auswahlwerte'!$D$4*Reisekostenabrechnung!P12+Reisekostenabrechnung!Q12*'AP Auswahlwerte'!$D$5)),IF($U$5='AP Auswahlwerte'!$I$3,(O12*'AP Auswahlwerte'!$D$3+'AP Auswahlwerte'!$D$4*Reisekostenabrechnung!P12+Reisekostenabrechnung!Q12*'AP Auswahlwerte'!$D$5),\"Auswahl fehlt\")),0))","v":""},{"$f":"IF(B12=D12,'AP Auswahlwerte'!$A$4,IF(S12>0,'AP Auswahlwerte'!$A$3,'AP Auswahlwerte'!$A$1))","v":"-"},{"$f":"(IF(D12-B12=0,0,IF(D12=\"\",0,IF(S12=0,IF(Y12='AP Auswahlwerte'!$A$2,VLOOKUP(G12,Tagessätze!A$4:N$230,4,FALSE),0))*AA12)))","v":0},{"$f":"D12-B12","v":0}]
[null,null,null,null,null,null,"Deutschland",{"$f":"VLOOKUP(G13,Tagessätze!A$4:D$238,2,FALSE)","v":28},{"$f":"VLOOKUP(G13,Tagessätze!A$4:D$238,3,FALSE)","v":14},{"$f":"IF(D13-B13>1,D13-B13-1,0)","v":0},{"$f":"IF(B13=\"\",0,IF(D13=B13,IF(E13-C13>8,1,0),IF(F13=\"JA\",2,IF(24-C13+E13>8,1,0))))","v":0},"",null,0,null,null,null,0,null,null,null,null,{"$f":"IF(B13=\"\",\"\",IF(Reisekostenabrechnung!$U$5=JA,\"Auswahl fehlt\",IF($U$5='AP Auswahlwerte'!$I$3,MIN(L13,(Reisekostenabrechnung!O13*0.2*Reisekostenabrechnung!$H13+Reisekostenabrechnung!P13*0.4*Reisekostenabrechnung!$H13+0.4*Reisekostenabrechnung!$H13*Reisekostenabrechnung!Q13)),IF(T13='AP Auswahlwerte'!$P$2,IF(L13>0,MIN(L13,Reisekostenabrechnung!H13*(0.2*Reisekostenabrechnung!O13+0.4*Reisekostenabrechnung!P13+0.4*Reisekostenabrechnung!Q13)),0),0))))","v":""},{"$f":"IF(B13=\"\",\"\",IF(L13=0,IF($U$5='AP Auswahlwerte'!$I$2,IF(T13<>\"PAUSCHAL\",0,(O13*'AP Auswahlwerte'!$D$3+'AP Auswahlwerte'!$D$4*Reisekostenabrechnung!P13+Reisekostenabrechnung!Q13*'AP Auswahlwerte'!$D$5)),IF($U$5='AP Auswahlwerte'!$I$3,(O13*'AP Auswahlwerte'!$D$3+'AP Auswahlwerte'!$D$4*Reisekostenabrechnung!P13+Reisekostenabrechnung!Q13*'AP Auswahlwerte'!$D$5),\"Auswahl fehlt\")),0))","v":""},"-",{"$f":"(IF(D13-B13=0,0,IF(D13=\"\",0,IF(S13=0,IF(Y13='AP Auswahlwerte'!$A$2,VLOOKUP(G13,Tagessätze!A$4:N$230,4,FALSE),0))*AA13)))","v":0},0]
[null,null,null,null,null,null,"Deutschland",{"$f":"VLOOKUP(G14,Tagessätze!A$4:D$238,2,FALSE)","v":28},{"$f":"VLOOKUP(G14,Tagessätze!A$4:D$238,3,FALSE)","v":14},0,0,"",null,0,null,null,null,0,null,null,null,null,{"$f":"IF(B14=\"\",\"\",IF(Reisekostenabrechnung!$U$5=JA,\"Auswahl fehlt\",IF($U$5='AP Auswahlwerte'!$I$3,MIN(L14,(Reisekostenabrechnung!O14*0.2*Reisekostenabrechnung!$H14+Reisekostenabrechnung!P14*0.4*Reisekostenabrechnung!$H14+0.4*Reisekostenabrechnung!$H14*Reisekostenabrechnung!Q14)),IF(T14='AP Auswahlwerte'!$P$2,IF(L14>0,MIN(L14,Reisekostenabrechnung!H14*(0.2*Reisekostenabrechnung!O14+0.4*Reisekostenabrechnung!P14+0.4*Reisekostenabrechnung!Q14)),0),0))))","v":""},{"$f":"IF(B14=\"\",\"\",IF(L14=0,IF($U$5='AP Auswahlwerte'!$I$2,IF(T14<>\"PAUSCHAL\",0,(O14*'AP Auswahlwerte'!$D$3+'AP Auswahlwerte'!$D$4*Reisekostenabrechnung!P14+Reisekostenabrechnung!Q14*'AP Auswahlwerte'!$D$5)),IF($U$5='AP Auswahlwerte'!$I$3,(O14*'AP Auswahlwerte'!$D$3+'AP Auswahlwerte'!$D$4*Reisekostenabrechnung!P14+Reisekostenabrechnung!Q14*'AP Auswahlwerte'!$D$5),\"Auswahl fehlt\")),0))","v":""},"-",{"$f":"(IF(D14-B14=0,0,IF(D14=\"\",0,IF(S14=0,IF(Y14='AP Auswahlwerte'!$A$2,VLOOKUP(G14,Tagessätze!A$4:N$230,4,FALSE),0))*AA14)))","v":0},0]
[null,null,null,null,null,null,"Deutschland",{"$f":"VLOOKUP(G15,Tagessätze!A$4:D$238,2,FALSE)","v":28},{"$f":"VLOOKUP(G15,Tagessätze!A$4:D$238,3,FALSE)","v":14},0,0,"",null,0,null,null,null,0,null,null,null,null,{"$f":"IF(B15=\"\",\"\",IF(Reisekostenabrechnung!$U$5=JA,\"Auswahl fehlt\",IF($U$5='AP Auswahlwerte'!$I$3,MIN(L15,(Reisekostenabrechnung!O15*0.2*Reisekostenabrechnung!$H15+Reisekostenabrechnung!P15*0.4*Reisekostenabrechnung!$H15+0.4*Reisekostenabrechnung!$H15*Reisekostenabrechnung!Q15)),IF(T15='AP Auswahlwerte'!$P$2,IF(L15>0,MIN(L15,Reisekostenabrechnung!H15*(0.2*Reisekostenabrechnung!O15+0.4*Reisekostenabrechnung!P15+0.4*Reisekostenabrechnung!Q15)),0),0))))","v":""},{"$f":"IF(B15=\"\",\"\",IF(L15=0,IF($U$5='AP Auswahlwerte'!$I$2,IF(T15<>\"PAUSCHAL\",0,(O15*'AP Auswahlwerte'!$D$3+'AP Auswahlwerte'!$D$4*Reisekostenabrechnung!P15+Reisekostenabrechnung!Q15*'AP Auswahlwerte'!$D$5)),IF($U$5='AP Auswahlwerte'!$I$3,(O15*'AP Auswahlwerte'!$D$3+'AP Auswahlwerte'!$D$4*Reisekostenabrechnung!P15+Reisekostenabrechnung!Q15*'AP Auswahlwerte'!$D$5),\"Auswahl fehlt\")),0))","v":""},"-",{"$f":"(IF(D15-B15=0,0,IF(D15=\"\",0,IF(S15=0,IF(Y15='AP Auswahlwerte'!$A$2,VLOOKUP(G15,Tagessätze!A$4:N$230,4,FALSE),0))*AA15)))","v":0},0]
[null,null,null,null,null,null,"Deutschland",{"$f":"VLOOKUP(G16,Tagessätze!A$4:D$238,2,FALSE)","v":28},{"$f":"VLOOKUP(G16,Tagessätze!A$4:D$238,3,FALSE)","v":14},0,0,"",null,0,null,null,null,0,null,null,null,null,{"$f":"IF(B16=\"\",\"\",IF(Reisekostenabrechnung!$U$5=JA,\"Auswahl fehlt\",IF($U$5='AP Auswahlwerte'!$I$3,MIN(L16,(Reisekostenabrechnung!O16*0.2*Reisekostenabrechnung!$H16+Reisekostenabrechnung!P16*0.4*Reisekostenabrechnung!$H16+0.4*Reisekostenabrechnung!$H16*Reisekostenabrechnung!Q16)),IF(T16='AP Auswahlwerte'!$P$2,IF(L16>0,MIN(L16,Reisekostenabrechnung!H16*(0.2*Reisekostenabrechnung!O16+0.4*Reisekostenabrechnung!P16+0.4*Reisekostenabrechnung!Q16)),0),0))))","v":""},{"$f":"IF(B16=\"\",\"\",IF(L16=0,IF($U$5='AP Auswahlwerte'!$I$2,IF(T16<>\"PAUSCHAL\",0,(O16*'AP Auswahlwerte'!$D$3+'AP Auswahlwerte'!$D$4*Reisekostenabrechnung!P16+Reisekostenabrechnung!Q16*'AP Auswahlwerte'!$D$5)),IF($U$5='AP Auswahlwerte'!$I$3,(O16*'AP Auswahlwerte'!$D$3+'AP Auswahlwerte'!$D$4*Reisekostenabrechnung!P16+Reisekostenabrechnung!Q16*'AP Auswahlwerte'!$D$5),\"Auswahl fehlt\")),0))","v":""},"-",{"$f":"(IF(D16-B16=0,0,IF(D16=\"\",0,IF(S16=0,IF(Y16='AP Auswahlwerte'!$A$2,VLOOKUP(G16,Tagessätze!A$4:N$230,4,FALSE),0))*AA16)))","v":0},0]
[null,null,null,null,null,null,"Deutschland",{"$f":"VLOOKUP(G17,Tagessätze!A$4:D$238,2,FALSE)","v":28},{"$f":"VLOOKUP(G17,Tagessätze!A$4:D$238,3,FALSE)","v":14},0,0,"",null,0,null,null,null,0,null,null,null,null,{"$f":"IF(B17=\"\",\"\",IF(Reisekostenabrechnung!$U$5=JA,\"Auswahl fehlt\",IF($U$5='AP Auswahlwerte'!$I$3,MIN(L17,(Reisekostenabrechnung!O17*0.2*Reisekostenabrechnung!$H17+Reisekostenabrechnung!P17*0.4*Reisekostenabrechnung!$H17+0.4*Reisekostenabrechnung!$H17*Reisekostenabrechnung!Q17)),IF(T17='AP Auswahlwerte'!$P$2,IF(L17>0,MIN(L17,Reisekostenabrechnung!H17*(0.2*Reisekostenabrechnung!O17+0.4*Reisekostenabrechnung!P17+0.4*Reisekostenabrechnung!Q17)),0),0))))","v":""},{"$f":"IF(B17=\"\",\"\",IF(L17=0,IF($U$5='AP Auswahlwerte'!$I$2,IF(T17<>\"PAUSCHAL\",0,(O17*'AP Auswahlwerte'!$D$3+'AP Auswahlwerte'!$D$4*Reisekostenabrechnung!P17+Reisekostenabrechnung!Q17*'AP Auswahlwerte'!$D$5)),IF($U$5='AP Auswahlwerte'!$I$3,(O17*'AP Auswahlwerte'!$D$3+'AP Auswahlwerte'!$D$4*Reisekostenabrechnung!P17+Reisekostenabrechnung!Q17*'AP Auswahlwerte'!$D$5),\"Auswahl fehlt\")),0))","v":""},"-",{"$f":"(IF(D17-B17=0,0,IF(D17=\"\",0,IF(S17=0,IF(Y17='AP Auswahlwerte'!$A$2,VLOOKUP(G17,Tagessätze!A$4:N$230,4,FALSE),0))*AA17)))","v":0},0]
[null,null,null,null,null,null,"Deutschland",{"$f":"VLOOKUP(G18,Tagessätze!A$4:D$238,2,FALSE)","v":28},{"$f":"VLOOKUP(G18,Tagessätze!A$4:D$238,3,FALSE)","v":14},0,0,"",null,0,null,null,null,0,null,null,null,null,{"$f":"IF(B18=\"\",\"\",IF(Reisekostenabrechnung!$U$5=JA,\"Auswahl fehlt\",IF($U$5='AP Auswahlwerte'!$I$3,MIN(L18,(Reisekostenabrechnung!O18*0.2*Reisekostenabrechnung!$H18+Reisekostenabrechnung!P18*0.4*Reisekostenabrechnung!$H18+0.4*Reisekostenabrechnung!$H18*Reisekostenabrechnung!Q18)),IF(T18='AP Auswahlwerte'!$P$2,IF(L18>0,MIN(L18,Reisekostenabrechnung!H18*(0.2*Reisekostenabrechnung!O18+0.4*Reisekostenabrechnung!P18+0.4*Reisekostenabrechnung!Q18)),0),0))))","v":""},{"$f":"IF(B18=\"\",\"\",IF(L18=0,IF($U$5='AP Auswahlwerte'!$I$2,IF(T18<>\"PAUSCHAL\",0,(O18*'AP Auswahlwerte'!$D$3+'AP Auswahlwerte'!$D$4*Reisekostenabrechnung!P18+Reisekostenabrechnung!Q18*'AP Auswahlwerte'!$D$5)),IF($U$5='AP Auswahlwerte'!$I$3,(O18*'AP Auswahlwerte'!$D$3+'AP Auswahlwerte'!$D$4*Reisekostenabrechnung!P18+Reisekostenabrechnung!Q18*'AP Auswahlwerte'!$D$5),\"Auswahl fehlt\")),0))","v":""},"-",{"$f":"(IF(D18-B18=0,0,IF(D18=\"\",0,IF(S18=0,IF(Y18='AP Auswahlwerte'!$A$2,VLOOKUP(G18,Tagessätze!A$4:N$230,4,FALSE),0))*AA18)))","v":0},0]
[null,null,null,null,null,null,"Deutschland",{"$f":"VLOOKUP(G19,Tagessätze!A$4:D$238,2,FALSE)","v":28},{"$f":"VLOOKUP(G19,Tagessätze!A$4:D$238,3,FALSE)","v":14},0,0,"",null,0,null,null,null,{"$f":"SUM(S19:V19)","v":0},null,null,null,null,{"$f":"IF(B19=\"\",\"\",IF(Reisekostenabrechnung!$U$5=JA,\"Auswahl fehlt\",IF($U$5='AP Auswahlwerte'!$I$3,MIN(L19,(Reisekostenabrechnung!O19*0.2*Reisekostenabrechnung!$H19+Reisekostenabrechnung!P19*0.4*Reisekostenabrechnung!$H19+0.4*Reisekostenabrechnung!$H19*Reisekostenabrechnung!Q19)),IF(T19='AP Auswahlwerte'!$P$2,IF(L19>0,MIN(L19,Reisekostenabrechnung!H19*(0.2*Reisekostenabrechnung!O19+0.4*Reisekostenabrechnung!P19+0.4*Reisekostenabrechnung!Q19)),0),0))))","v":""},{"$f":"IF(B19=\"\",\"\",IF(L19=0,IF($U$5='AP Auswahlwerte'!$I$2,IF(T19<>\"PAUSCHAL\",0,(O19*'AP Auswahlwerte'!$D$3+'AP Auswahlwerte'!$D$4*Reisekostenabrechnung!P19+Reisekostenabrechnung!Q19*'AP Auswahlwerte'!$D$5)),IF($U$5='AP Auswahlwerte'!$I$3,(O19*'AP Auswahlwerte'!$D$3+'AP Auswahlwerte'!$D$4*Reisekostenabrechnung!P19+Reisekostenabrechnung!Q19*'AP Auswahlwerte'!$D$5),\"Auswahl fehlt\")),0))","v":""},"-",{"$f":"(IF(D19-B19=0,0,IF(D19=\"\",0,IF(S19=0,IF(Y19='AP Auswahlwerte'!$A$2,VLOOKUP(G19,Tagessätze!A$4:N$230,4,FALSE),0))*AA19)))","v":0},0]
[null,null,null,null,null,null,"Deutschland",{"$f":"VLOOKUP(G20,Tagessätze!A$4:D$238,2,FALSE)","v":28},{"$f":"VLOOKUP(G20,Tagessätze!A$4:D$238,3,FALSE)","v":14},{"$f":"IF(D20-B20>1,D20-B20-1,0)","v":0},{"$f":"IF(B20=\"\",0,IF(D20=B20,IF(E20-C20>8,1,0),IF(F20=\"JA\",2,IF(24-C20+E20>8,1,0))))","v":0},{"$f":"IF(B20=\"\",\"\",IF($H$5=\"BITTE AUSWÄHLEN\",\"Wahl fehlt\",IF($H$5=\"JA\",(H20*J20+I20*K20),0)))","v":""},null,{"$f":"M20*$N$11","v":0},null,null,null,0,null,null,null,null,{"$f":"IF(B20=\"\",\"\",IF(Reisekostenabrechnung!$U$5=JA,\"Auswahl fehlt\",IF($U$5='AP Auswahlwerte'!$I$3,MIN(L20,(Reisekostenabrechnung!O20*0.2*Reisekostenabrechnung!$H20+Reisekostenabrechnung!P20*0.4*Reisekostenabrechnung!$H20+0.4*Reisekostenabrechnung!$H20*Reisekostenabrechnung!Q20)),IF(T20='AP Auswahlwerte'!$P$2,IF(L20>0,MIN(L20,Reisekostenabrechnung!H20*(0.2*Reisekostenabrechnung!O20+0.4*Reisekostenabrechnung!P20+0.4*Reisekostenabrechnung!Q20)),0),0))))","v":""},{"$f":"IF(B20=\"\",\"\",IF(L20=0,IF($U$5='AP Auswahlwerte'!$I$2,IF(T20<>\"PAUSCHAL\",0,(O20*'AP Auswahlwerte'!$D$3+'AP Auswahlwerte'!$D$4*Reisekostenabrechnung!P20+Reisekostenabrechnung!Q20*'AP Auswahlwerte'!$D$5)),IF($U$5='AP Auswahlwerte'!$I$3,(O20*'AP Auswahlwerte'!$D$3+'AP Auswahlwerte'!$D$4*Reisekostenabrechnung!P20+Reisekostenabrechnung!Q20*'AP Auswahlwerte'!$D$5),\"Auswahl fehlt\")),0))","v":""},"-",{"$f":"(IF(D20-B20=0,0,IF(D20=\"\",0,IF(S20=0,IF(Y20='AP Auswahlwerte'!$A$2,VLOOKUP(G20,Tagessätze!A$4:N$230,4,FALSE),0))*AA20)))","v":0},0]
[null,null,null,null,null,null,"Deutschland",{"$f":"VLOOKUP(G21,Tagessätze!A$4:D$238,2,FALSE)","v":28},{"$f":"VLOOKUP(G21,Tagessätze!A$4:D$238,3,FALSE)","v":14},{"$f":"IF(D21-B21>1,D21-B21-1,0)","v":0},{"$f":"IF(B21=\"\",0,IF(D21=B21,IF(E21-C21>8,1,0),IF(F21=\"JA\",2,IF(24-C21+E21>8,1,0))))","v":0},"",null,0,null,null,null,{"$f":"SUM(S21:V21)","v":0},null,null,null,null,{"$f":"IF(B21=\"\",\"\",IF(Reisekostenabrechnung!$U$5=JA,\"Auswahl fehlt\",IF($U$5='AP Auswahlwerte'!$I$3,MIN(L21,(Reisekostenabrechnung!O21*0.2*Reisekostenabrechnung!$H21+Reisekostenabrechnung!P21*0.4*Reisekostenabrechnung!$H21+0.4*Reisekostenabrechnung!$H21*Reisekostenabrechnung!Q21)),IF(T21='AP Auswahlwerte'!$P$2,IF(L21>0,MIN(L21,Reisekostenabrechnung!H21*(0.2*Reisekostenabrechnung!O21+0.4*Reisekostenabrechnung!P21+0.4*Reisekostenabrechnung!Q21)),0),0))))","v":""},{"$f":"IF(B21=\"\",\"\",IF(L21=0,IF($U$5='AP Auswahlwerte'!$I$2,IF(T21<>\"PAUSCHAL\",0,(O21*'AP Auswahlwerte'!$D$3+'AP Auswahlwerte'!$D$4*Reisekostenabrechnung!P21+Reisekostenabrechnung!Q21*'AP Auswahlwerte'!$D$5)),IF($U$5='AP Auswahlwerte'!$I$3,(O21*'AP Auswahlwerte'!$D$3+'AP Auswahlwerte'!$D$4*Reisekostenabrechnung!P21+Reisekostenabrechnung!Q21*'AP Auswahlwerte'!$D$5),\"Auswahl fehlt\")),0))","v":""},"-",{"$f":"(IF(D21-B21=0,0,IF(D21=\"\",0,IF(S21=0,IF(Y21='AP Auswahlwerte'!$A$2,VLOOKUP(G21,Tagessätze!A$4:N$230,4,FALSE),0))*AA21)))","v":0},0]
[null,null,null,null,null,null,"Deutschland",{"$f":"VLOOKUP(G22,Tagessätze!A$4:D$238,2,FALSE)","v":28},{"$f":"VLOOKUP(G22,Tagessätze!A$4:D$238,3,FALSE)","v":14},0,0,"",null,0,null,null,null,0,null,null,null,null,{"$f":"IF(B22=\"\",\"\",IF(Reisekostenabrechnung!$U$5=JA,\"Auswahl fehlt\",IF($U$5='AP Auswahlwerte'!$I$3,MIN(L22,(Reisekostenabrechnung!O22*0.2*Reisekostenabrechnung!$H22+Reisekostenabrechnung!P22*0.4*Reisekostenabrechnung!$H22+0.4*Reisekostenabrechnung!$H22*Reisekostenabrechnung!Q22)),IF(T22='AP Auswahlwerte'!$P$2,IF(L22>0,MIN(L22,Reisekostenabrechnung!H22*(0.2*Reisekostenabrechnung!O22+0.4*Reisekostenabrechnung!P22+0.4*Reisekostenabrechnung!Q22)),0),0))))","v":""},{"$f":"IF(B22=\"\",\"\",IF(L22=0,IF($U$5='AP Auswahlwerte'!$I$2,IF(T22<>\"PAUSCHAL\",0,(O22*'AP Auswahlwerte'!$D$3+'AP Auswahlwerte'!$D$4*Reisekostenabrechnung!P22+Reisekostenabrechnung!Q22*'AP Auswahlwerte'!$D$5)),IF($U$5='AP Auswahlwerte'!$I$3,(O22*'AP Auswahlwerte'!$D$3+'AP Auswahlwerte'!$D$4*Reisekostenabrechnung!P22+Reisekostenabrechnung!Q22*'AP Auswahlwerte'!$D$5),\"Auswahl fehlt\")),0))","v":""},"-",{"$f":"(IF(D22-B22=0,0,IF(D22=\"\",0,IF(S22=0,IF(Y22='AP Auswahlwerte'!$A$2,VLOOKUP(G22,Tagessätze!A$4:N$230,4,FALSE),0))*AA22)))","v":0},0]
[null,null,null,null,null,null,"Deutschland",{"$f":"VLOOKUP(G23,Tagessätze!A$4:D$238,2,FALSE)","v":28},{"$f":"VLOOKUP(G23,Tagessätze!A$4:D$238,3,FALSE)","v":14},0,0,"",null,0,null,null,null,0,null,null,null,null,{"$f":"IF(B23=\"\",\"\",IF(Reisekostenabrechnung!$U$5=JA,\"Auswahl fehlt\",IF($U$5='AP Auswahlwerte'!$I$3,MIN(L23,(Reisekostenabrechnung!O23*0.2*Reisekostenabrechnung!$H23+Reisekostenabrechnung!P23*0.4*Reisekostenabrechnung!$H23+0.4*Reisekostenabrechnung!$H23*Reisekostenabrechnung!Q23)),IF(T23='AP Auswahlwerte'!$P$2,IF(L23>0,MIN(L23,Reisekostenabrechnung!H23*(0.2*Reisekostenabrechnung!O23+0.4*Reisekostenabrechnung!P23+0.4*Reisekostenabrechnung!Q23)),0),0))))","v":""},{"$f":"IF(B23=\"\",\"\",IF(L23=0,IF($U$5='AP Auswahlwerte'!$I$2,IF(T23<>\"PAUSCHAL\",0,(O23*'AP Auswahlwerte'!$D$3+'AP Auswahlwerte'!$D$4*Reisekostenabrechnung!P23+Reisekostenabrechnung!Q23*'AP Auswahlwerte'!$D$5)),IF($U$5='AP Auswahlwerte'!$I$3,(O23*'AP Auswahlwerte'!$D$3+'AP Auswahlwerte'!$D$4*Reisekostenabrechnung!P23+Reisekostenabrechnung!Q23*'AP Auswahlwerte'!$D$5),\"Auswahl fehlt\")),0))","v":""},"-",{"$f":"(IF(D23-B23=0,0,IF(D23=\"\",0,IF(S23=0,IF(Y23='AP Auswahlwerte'!$A$2,VLOOKUP(G23,Tagessätze!A$4:N$230,4,FALSE),0))*AA23)))","v":0},0]
[null,null,null,null,null,null,"Deutschland",{"$f":"VLOOKUP(G24,Tagessätze!A$4:D$238,2,FALSE)","v":28},{"$f":"VLOOKUP(G24,Tagessätze!A$4:D$238,3,FALSE)","v":14},0,0,"",null,0,null,null,null,0,null,null,null,null,{"$f":"IF(B24=\"\",\"\",IF(Reisekostenabrechnung!$U$5=JA,\"Auswahl fehlt\",IF($U$5='AP Auswahlwerte'!$I$3,MIN(L24,(Reisekostenabrechnung!O24*0.2*Reisekostenabrechnung!$H24+Reisekostenabrechnung!P24*0.4*Reisekostenabrechnung!$H24+0.4*Reisekostenabrechnung!$H24*Reisekostenabrechnung!Q24)),IF(T24='AP Auswahlwerte'!$P$2,IF(L24>0,MIN(L24,Reisekostenabrechnung!H24*(0.2*Reisekostenabrechnung!O24+0.4*Reisekostenabrechnung!P24+0.4*Reisekostenabrechnung!Q24)),0),0))))","v":""},{"$f":"IF(B24=\"\",\"\",IF(L24=0,IF($U$5='AP Auswahlwerte'!$I$2,IF(T24<>\"PAUSCHAL\",0,(O24*'AP Auswahlwerte'!$D$3+'AP Auswahlwerte'!$D$4*Reisekostenabrechnung!P24+Reisekostenabrechnung!Q24*'AP Auswahlwerte'!$D$5)),IF($U$5='AP Auswahlwerte'!$I$3,(O24*'AP Auswahlwerte'!$D$3+'AP Auswahlwerte'!$D$4*Reisekostenabrechnung!P24+Reisekostenabrechnung!Q24*'AP Auswahlwerte'!$D$5),\"Auswahl fehlt\")),0))","v":""},"-",{"$f":"(IF(D24-B24=0,0,IF(D24=\"\",0,IF(S24=0,IF(Y24='AP Auswahlwerte'!$A$2,VLOOKUP(G24,Tagessätze!A$4:N$230,4,FALSE),0))*AA24)))","v":0},0]
[null,null,null,null,null,null,"Deutschland",{"$f":"VLOOKUP(G25,Tagessätze!A$4:D$238,2,FALSE)","v":28},{"$f":"VLOOKUP(G25,Tagessätze!A$4:D$238,3,FALSE)","v":14},0,0,"",null,0,null,null,null,0,null,null,null,null,{"$f":"IF(B25=\"\",\"\",IF(Reisekostenabrechnung!$U$5=JA,\"Auswahl fehlt\",IF($U$5='AP Auswahlwerte'!$I$3,MIN(L25,(Reisekostenabrechnung!O25*0.2*Reisekostenabrechnung!$H25+Reisekostenabrechnung!P25*0.4*Reisekostenabrechnung!$H25+0.4*Reisekostenabrechnung!$H25*Reisekostenabrechnung!Q25)),IF(T25='AP Auswahlwerte'!$P$2,IF(L25>0,MIN(L25,Reisekostenabrechnung!H25*(0.2*Reisekostenabrechnung!O25+0.4*Reisekostenabrechnung!P25+0.4*Reisekostenabrechnung!Q25)),0),0))))","v":""},{"$f":"IF(B25=\"\",\"\",IF(L25=0,IF($U$5='AP Auswahlwerte'!$I$2,IF(T25<>\"PAUSCHAL\",0,(O25*'AP Auswahlwerte'!$D$3+'AP Auswahlwerte'!$D$4*Reisekostenabrechnung!P25+Reisekostenabrechnung!Q25*'AP Auswahlwerte'!$D$5)),IF($U$5='AP Auswahlwerte'!$I$3,(O25*'AP Auswahlwerte'!$D$3+'AP Auswahlwerte'!$D$4*Reisekostenabrechnung!P25+Reisekostenabrechnung!Q25*'AP Auswahlwerte'!$D$5),\"Auswahl fehlt\")),0))","v":""},"-",{"$f":"(IF(D25-B25=0,0,IF(D25=\"\",0,IF(S25=0,IF(Y25='AP Auswahlwerte'!$A$2,VLOOKUP(G25,Tagessätze!A$4:N$230,4,FALSE),0))*AA25)))","v":0},0]
[null,null,null,null,null,null,"Deutschland",{"$f":"VLOOKUP(G26,Tagessätze!A$4:D$238,2,FALSE)","v":28},{"$f":"VLOOKUP(G26,Tagessätze!A$4:D$238,3,FALSE)","v":14},0,0,"",null,0,null,null,null,0,null,null,null,null,{"$f":"IF(B26=\"\",\"\",IF(Reisekostenabrechnung!$U$5=JA,\"Auswahl fehlt\",IF($U$5='AP Auswahlwerte'!$I$3,MIN(L26,(Reisekostenabrechnung!O26*0.2*Reisekostenabrechnung!$H26+Reisekostenabrechnung!P26*0.4*Reisekostenabrechnung!$H26+0.4*Reisekostenabrechnung!$H26*Reisekostenabrechnung!Q26)),IF(T26='AP Auswahlwerte'!$P$2,IF(L26>0,MIN(L26,Reisekostenabrechnung!H26*(0.2*Reisekostenabrechnung!O26+0.4*Reisekostenabrechnung!P26+0.4*Reisekostenabrechnung!Q26)),0),0))))","v":""},{"$f":"IF(B26=\"\",\"\",IF(L26=0,IF($U$5='AP Auswahlwerte'!$I$2,IF(T26<>\"PAUSCHAL\",0,(O26*'AP Auswahlwerte'!$D$3+'AP Auswahlwerte'!$D$4*Reisekostenabrechnung!P26+Reisekostenabrechnung!Q26*'AP Auswahlwerte'!$D$5)),IF($U$5='AP Auswahlwerte'!$I$3,(O26*'AP Auswahlwerte'!$D$3+'AP Auswahlwerte'!$D$4*Reisekostenabrechnung!P26+Reisekostenabrechnung!Q26*'AP Auswahlwerte'!$D$5),\"Auswahl fehlt\")),0))","v":""},"-",{"$f":"(IF(D26-B26=0,0,IF(D26=\"\",0,IF(S26=0,IF(Y26='AP Auswahlwerte'!$A$2,VLOOKUP(G26,Tagessätze!A$4:N$230,4,FALSE),0))*AA26)))","v":0},0]
[null,null,null,null,null,null,"Deutschland",{"$f":"VLOOKUP(G27,Tagessätze!A$4:D$238,2,FALSE)","v":28},{"$f":"VLOOKUP(G27,Tagessätze!A$4:D$238,3,FALSE)","v":14},0,0,"",null,0,null,null,null,0,null,null,null,null,{"$f":"IF(B27=\"\",\"\",IF(Reisekostenabrechnung!$U$5=JA,\"Auswahl fehlt\",IF($U$5='AP Auswahlwerte'!$I$3,MIN(L27,(Reisekostenabrechnung!O27*0.2*Reisekostenabrechnung!$H27+Reisekostenabrechnung!P27*0.4*Reisekostenabrechnung!$H27+0.4*Reisekostenabrechnung!$H27*Reisekostenabrechnung!Q27)),IF(T27='AP Auswahlwerte'!$P$2,IF(L27>0,MIN(L27,Reisekostenabrechnung!H27*(0.2*Reisekostenabrechnung!O27+0.4*Reisekostenabrechnung!P27+0.4*Reisekostenabrechnung!Q27)),0),0))))","v":""},{"$f":"IF(B27=\"\",\"\",IF(L27=0,IF($U$5='AP Auswahlwerte'!$I$2,IF(T27<>\"PAUSCHAL\",0,(O27*'AP Auswahlwerte'!$D$3+'AP Auswahlwerte'!$D$4*Reisekostenabrechnung!P27+Reisekostenabrechnung!Q27*'AP Auswahlwerte'!$D$5)),IF($U$5='AP Auswahlwerte'!$I$3,(O27*'AP Auswahlwerte'!$D$3+'AP Auswahlwerte'!$D$4*Reisekostenabrechnung!P27+Reisekostenabrechnung!Q27*'AP Auswahlwerte'!$D$5),\"Auswahl fehlt\")),0))","v":""},"-",{"$f":"(IF(D27-B27=0,0,IF(D27=\"\",0,IF(S27=0,IF(Y27='AP Auswahlwerte'!$A$2,VLOOKUP(G27,Tagessätze!A$4:N$230,4,FALSE),0))*AA27)))","v":0},0]
[null,null,null,null,null,null,"Deutschland",{"$f":"VLOOKUP(G28,Tagessätze!A$4:D$238,2,FALSE)","v":28},{"$f":"VLOOKUP(G28,Tagessätze!A$4:D$238,3,FALSE)","v":14},0,0,"",null,0,null,null,null,0,null,null,null,null,{"$f":"IF(B28=\"\",\"\",IF(Reisekostenabrechnung!$U$5=JA,\"Auswahl fehlt\",IF($U$5='AP Auswahlwerte'!$I$3,MIN(L28,(Reisekostenabrechnung!O28*0.2*Reisekostenabrechnung!$H28+Reisekostenabrechnung!P28*0.4*Reisekostenabrechnung!$H28+0.4*Reisekostenabrechnung!$H28*Reisekostenabrechnung!Q28)),IF(T28='AP Auswahlwerte'!$P$2,IF(L28>0,MIN(L28,Reisekostenabrechnung!H28*(0.2*Reisekostenabrechnung!O28+0.4*Reisekostenabrechnung!P28+0.4*Reisekostenabrechnung!Q28)),0),0))))","v":""},{"$f":"IF(B28=\"\",\"\",IF(L28=0,IF($U$5='AP Auswahlwerte'!$I$2,IF(T28<>\"PAUSCHAL\",0,(O28*'AP Auswahlwerte'!$D$3+'AP Auswahlwerte'!$D$4*Reisekostenabrechnung!P28+Reisekostenabrechnung!Q28*'AP Auswahlwerte'!$D$5)),IF($U$5='AP Auswahlwerte'!$I$3,(O28*'AP Auswahlwerte'!$D$3+'AP Auswahlwerte'!$D$4*Reisekostenabrechnung!P28+Reisekostenabrechnung!Q28*'AP Auswahlwerte'!$D$5),\"Auswahl fehlt\")),0))","v":""},"-",{"$f":"(IF(D28-B28=0,0,IF(D28=\"\",0,IF(S28=0,IF(Y28='AP Auswahlwerte'!$A$2,VLOOKUP(G28,Tagessätze!A$4:N$230,4,FALSE),0))*AA28)))","v":0},0]
[null,null,null,null,null,null,"Deutschland",{"$f":"VLOOKUP(G29,Tagessätze!A$4:D$238,2,FALSE)","v":28},{"$f":"VLOOKUP(G29,Tagessätze!A$4:D$238,3,FALSE)","v":14},0,0,"",null,0,null,null,null,0,null,null,null,null,{"$f":"IF(B29=\"\",\"\",IF(Reisekostenabrechnung!$U$5=JA,\"Auswahl fehlt\",IF($U$5='AP Auswahlwerte'!$I$3,MIN(L29,(Reisekostenabrechnung!O29*0.2*Reisekostenabrechnung!$H29+Reisekostenabrechnung!P29*0.4*Reisekostenabrechnung!$H29+0.4*Reisekostenabrechnung!$H29*Reisekostenabrechnung!Q29)),IF(T29='AP Auswahlwerte'!$P$2,IF(L29>0,MIN(L29,Reisekostenabrechnung!H29*(0.2*Reisekostenabrechnung!O29+0.4*Reisekostenabrechnung!P29+0.4*Reisekostenabrechnung!Q29)),0),0))))","v":""},{"$f":"IF(B29=\"\",\"\",IF(L29=0,IF($U$5='AP Auswahlwerte'!$I$2,IF(T29<>\"PAUSCHAL\",0,(O29*'AP Auswahlwerte'!$D$3+'AP Auswahlwerte'!$D$4*Reisekostenabrechnung!P29+Reisekostenabrechnung!Q29*'AP Auswahlwerte'!$D$5)),IF($U$5='AP Auswahlwerte'!$I$3,(O29*'AP Auswahlwerte'!$D$3+'AP Auswahlwerte'!$D$4*Reisekostenabrechnung!P29+Reisekostenabrechnung!Q29*'AP Auswahlwerte'!$D$5),\"Auswahl fehlt\")),0))","v":""},"-",{"$f":"(IF(D29-B29=0,0,IF(D29=\"\",0,IF(S29=0,IF(Y29='AP Auswahlwerte'!$A$2,VLOOKUP(G29,Tagessätze!A$4:N$230,4,FALSE),0))*AA29)))","v":0},0]
[null,null,null,null,null,null,"Deutschland",{"$f":"VLOOKUP(G30,Tagessätze!A$4:D$238,2,FALSE)","v":28},{"$f":"VLOOKUP(G30,Tagessätze!A$4:D$238,3,FALSE)","v":14},0,0,"",null,0,null,null,null,0,null,null,null,null,{"$f":"IF(B30=\"\",\"\",IF(Reisekostenabrechnung!$U$5=JA,\"Auswahl fehlt\",IF($U$5='AP Auswahlwerte'!$I$3,MIN(L30,(Reisekostenabrechnung!O30*0.2*Reisekostenabrechnung!$H30+Reisekostenabrechnung!P30*0.4*Reisekostenabrechnung!$H30+0.4*Reisekostenabrechnung!$H30*Reisekostenabrechnung!Q30)),IF(T30='AP Auswahlwerte'!$P$2,IF(L30>0,MIN(L30,Reisekostenabrechnung!H30*(0.2*Reisekostenabrechnung!O30+0.4*Reisekostenabrechnung!P30+0.4*Reisekostenabrechnung!Q30)),0),0))))","v":""},{"$f":"IF(B30=\"\",\"\",IF(L30=0,IF($U$5='AP Auswahlwerte'!$I$2,IF(T30<>\"PAUSCHAL\",0,(O30*'AP Auswahlwerte'!$D$3+'AP Auswahlwerte'!$D$4*Reisekostenabrechnung!P30+Reisekostenabrechnung!Q30*'AP Auswahlwerte'!$D$5)),IF($U$5='AP Auswahlwerte'!$I$3,(O30*'AP Auswahlwerte'!$D$3+'AP Auswahlwerte'!$D$4*Reisekostenabrechnung!P30+Reisekostenabrechnung!Q30*'AP Auswahlwerte'!$D$5),\"Auswahl fehlt\")),0))","v":""},"-",{"$f":"(IF(D30-B30=0,0,IF(D30=\"\",0,IF(S30=0,IF(Y30='AP Auswahlwerte'!$A$2,VLOOKUP(G30,Tagessätze!A$4:N$230,4,FALSE),0))*AA30)))","v":0},0]
[null,null,null,null,null,null,"Deutschland",{"$f":"VLOOKUP(G31,Tagessätze!A$4:D$238,2,FALSE)","v":28},{"$f":"VLOOKUP(G31,Tagessätze!A$4:D$238,3,FALSE)","v":14},0,0,"",null,0,null,null,null,0,null,null,null,null,{"$f":"IF(B31=\"\",\"\",IF(Reisekostenabrechnung!$U$5=JA,\"Auswahl fehlt\",IF($U$5='AP Auswahlwerte'!$I$3,MIN(L31,(Reisekostenabrechnung!O31*0.2*Reisekostenabrechnung!$H31+Reisekostenabrechnung!P31*0.4*Reisekostenabrechnung!$H31+0.4*Reisekostenabrechnung!$H31*Reisekostenabrechnung!Q31)),IF(T31='AP Auswahlwerte'!$P$2,IF(L31>0,MIN(L31,Reisekostenabrechnung!H31*(0.2*Reisekostenabrechnung!O31+0.4*Reisekostenabrechnung!P31+0.4*Reisekostenabrechnung!Q31)),0),0))))","v":""},{"$f":"IF(B31=\"\",\"\",IF(L31=0,IF($U$5='AP Auswahlwerte'!$I$2,IF(T31<>\"PAUSCHAL\",0,(O31*'AP Auswahlwerte'!$D$3+'AP Auswahlwerte'!$D$4*Reisekostenabrechnung!P31+Reisekostenabrechnung!Q31*'AP Auswahlwerte'!$D$5)),IF($U$5='AP Auswahlwerte'!$I$3,(O31*'AP Auswahlwerte'!$D$3+'AP Auswahlwerte'!$D$4*Reisekostenabrechnung!P31+Reisekostenabrechnung!Q31*'AP Auswahlwerte'!$D$5),\"Auswahl fehlt\")),0))","v":""},"-",{"$f":"(IF(D31-B31=0,0,IF(D31=\"\",0,IF(S31=0,IF(Y31='AP Auswahlwerte'!$A$2,VLOOKUP(G31,Tagessätze!A$4:N$230,4,FALSE),0))*AA31)))","v":0},0]
[null,null,null,null,null,null,"Deutschland",{"$f":"VLOOKUP(G32,Tagessätze!A$4:D$238,2,FALSE)","v":28},{"$f":"VLOOKUP(G32,Tagessätze!A$4:D$238,3,FALSE)","v":14},0,0,"",null,0,null,null,null,0,null,null,null,null,{"$f":"IF(B32=\"\",\"\",IF(Reisekostenabrechnung!$U$5=JA,\"Auswahl fehlt\",IF($U$5='AP Auswahlwerte'!$I$3,MIN(L32,(Reisekostenabrechnung!O32*0.2*Reisekostenabrechnung!$H32+Reisekostenabrechnung!P32*0.4*Reisekostenabrechnung!$H32+0.4*Reisekostenabrechnung!$H32*Reisekostenabrechnung!Q32)),IF(T32='AP Auswahlwerte'!$P$2,IF(L32>0,MIN(L32,Reisekostenabrechnung!H32*(0.2*Reisekostenabrechnung!O32+0.4*Reisekostenabrechnung!P32+0.4*Reisekostenabrechnung!Q32)),0),0))))","v":""},{"$f":"IF(B32=\"\",\"\",IF(L32=0,IF($U$5='AP Auswahlwerte'!$I$2,IF(T32<>\"PAUSCHAL\",0,(O32*'AP Auswahlwerte'!$D$3+'AP Auswahlwerte'!$D$4*Reisekostenabrechnung!P32+Reisekostenabrechnung!Q32*'AP Auswahlwerte'!$D$5)),IF($U$5='AP Auswahlwerte'!$I$3,(O32*'AP Auswahlwerte'!$D$3+'AP Auswahlwerte'!$D$4*Reisekostenabrechnung!P32+Reisekostenabrechnung!Q32*'AP Auswahlwerte'!$D$5),\"Auswahl fehlt\")),0))","v":""},"-",{"$f":"(IF(D32-B32=0,0,IF(D32=\"\",0,IF(S32=0,IF(Y32='AP Auswahlwerte'!$A$2,VLOOKUP(G32,Tagessätze!A$4:N$230,4,FALSE),0))*AA32)))","v":0},0]
[null,null,null,null,null,null,"Deutschland",{"$f":"VLOOKUP(G33,Tagessätze!A$4:D$238,2,FALSE)","v":28},{"$f":"VLOOKUP(G33,Tagessätze!A$4:D$238,3,FALSE)","v":14},0,0,"",null,0,null,null,null,0,null,null,null,null,{"$f":"IF(B33=\"\",\"\",IF(Reisekostenabrechnung!$U$5=JA,\"Auswahl fehlt\",IF($U$5='AP Auswahlwerte'!$I$3,MIN(L33,(Reisekostenabrechnung!O33*0.2*Reisekostenabrechnung!$H33+Reisekostenabrechnung!P33*0.4*Reisekostenabrechnung!$H33+0.4*Reisekostenabrechnung!$H33*Reisekostenabrechnung!Q33)),IF(T33='AP Auswahlwerte'!$P$2,IF(L33>0,MIN(L33,Reisekostenabrechnung!H33*(0.2*Reisekostenabrechnung!O33+0.4*Reisekostenabrechnung!P33+0.4*Reisekostenabrechnung!Q33)),0),0))))","v":""},{"$f":"IF(B33=\"\",\"\",IF(L33=0,IF($U$5='AP Auswahlwerte'!$I$2,IF(T33<>\"PAUSCHAL\",0,(O33*'AP Auswahlwerte'!$D$3+'AP Auswahlwerte'!$D$4*Reisekostenabrechnung!P33+Reisekostenabrechnung!Q33*'AP Auswahlwerte'!$D$5)),IF($U$5='AP Auswahlwerte'!$I$3,(O33*'AP Auswahlwerte'!$D$3+'AP Auswahlwerte'!$D$4*Reisekostenabrechnung!P33+Reisekostenabrechnung!Q33*'AP Auswahlwerte'!$D$5),\"Auswahl fehlt\")),0))","v":""},"-",{"$f":"(IF(D33-B33=0,0,IF(D33=\"\",0,IF(S33=0,IF(Y33='AP Auswahlwerte'!$A$2,VLOOKUP(G33,Tagessätze!A$4:N$230,4,FALSE),0))*AA33)))","v":0},0]
[null,null,null,null,null,null,"Deutschland",{"$f":"VLOOKUP(G34,Tagessätze!A$4:D$238,2,FALSE)","v":28},{"$f":"VLOOKUP(G34,Tagessätze!A$4:D$238,3,FALSE)","v":14},0,0,"",null,0,null,null,null,0,null,null,null,null,{"$f":"IF(B34=\"\",\"\",IF(Reisekostenabrechnung!$U$5=JA,\"Auswahl fehlt\",IF($U$5='AP Auswahlwerte'!$I$3,MIN(L34,(Reisekostenabrechnung!O34*0.2*Reisekostenabrechnung!$H34+Reisekostenabrechnung!P34*0.4*Reisekostenabrechnung!$H34+0.4*Reisekostenabrechnung!$H34*Reisekostenabrechnung!Q34)),IF(T34='AP Auswahlwerte'!$P$2,IF(L34>0,MIN(L34,Reisekostenabrechnung!H34*(0.2*Reisekostenabrechnung!O34+0.4*Reisekostenabrechnung!P34+0.4*Reisekostenabrechnung!Q34)),0),0))))","v":""},{"$f":"IF(B34=\"\",\"\",IF(L34=0,IF($U$5='AP Auswahlwerte'!$I$2,IF(T34<>\"PAUSCHAL\",0,(O34*'AP Auswahlwerte'!$D$3+'AP Auswahlwerte'!$D$4*Reisekostenabrechnung!P34+Reisekostenabrechnung!Q34*'AP Auswahlwerte'!$D$5)),IF($U$5='AP Auswahlwerte'!$I$3,(O34*'AP Auswahlwerte'!$D$3+'AP Auswahlwerte'!$D$4*Reisekostenabrechnung!P34+Reisekostenabrechnung!Q34*'AP Auswahlwerte'!$D$5),\"Auswahl fehlt\")),0))","v":""},"-",{"$f":"(IF(D34-B34=0,0,IF(D34=\"\",0,IF(S34=0,IF(Y34='AP Auswahlwerte'!$A$2,VLOOKUP(G34,Tagessätze!A$4:N$230,4,FALSE),0))*AA34)))","v":0},0]
[null,null,null,null,null,null,"Deutschland",{"$f":"VLOOKUP(G35,Tagessätze!A$4:D$238,2,FALSE)","v":28},{"$f":"VLOOKUP(G35,Tagessätze!A$4:D$238,3,FALSE)","v":14},0,0,"",null,0,null,null,null,0,null,null,null,null,{"$f":"IF(B35=\"\",\"\",IF(Reisekostenabrechnung!$U$5=JA,\"Auswahl fehlt\",IF($U$5='AP Auswahlwerte'!$I$3,MIN(L35,(Reisekostenabrechnung!O35*0.2*Reisekostenabrechnung!$H35+Reisekostenabrechnung!P35*0.4*Reisekostenabrechnung!$H35+0.4*Reisekostenabrechnung!$H35*Reisekostenabrechnung!Q35)),IF(T35='AP Auswahlwerte'!$P$2,IF(L35>0,MIN(L35,Reisekostenabrechnung!H35*(0.2*Reisekostenabrechnung!O35+0.4*Reisekostenabrechnung!P35+0.4*Reisekostenabrechnung!Q35)),0),0))))","v":""},{"$f":"IF(B35=\"\",\"\",IF(L35=0,IF($U$5='AP Auswahlwerte'!$I$2,IF(T35<>\"PAUSCHAL\",0,(O35*'AP Auswahlwerte'!$D$3+'AP Auswahlwerte'!$D$4*Reisekostenabrechnung!P35+Reisekostenabrechnung!Q35*'AP Auswahlwerte'!$D$5)),IF($U$5='AP Auswahlwerte'!$I$3,(O35*'AP Auswahlwerte'!$D$3+'AP Auswahlwerte'!$D$4*Reisekostenabrechnung!P35+Reisekostenabrechnung!Q35*'AP Auswahlwerte'!$D$5),\"Auswahl fehlt\")),0))","v":""},"-",{"$f":"(IF(D35-B35=0,0,IF(D35=\"\",0,IF(S35=0,IF(Y35='AP Auswahlwerte'!$A$2,VLOOKUP(G35,Tagessätze!A$4:N$230,4,FALSE),0))*AA35)))","v":0},0]
[null,null,null,null,null,null,"Deutschland",{"$f":"VLOOKUP(G36,Tagessätze!A$4:D$238,2,FALSE)","v":28},{"$f":"VLOOKUP(G36,Tagessätze!A$4:D$238,3,FALSE)","v":14},0,0,"",null,0,null,null,null,0,null,null,null,null,{"$f":"IF(B36=\"\",\"\",IF(Reisekostenabrechnung!$U$5=JA,\"Auswahl fehlt\",IF($U$5='AP Auswahlwerte'!$I$3,MIN(L36,(Reisekostenabrechnung!O36*0.2*Reisekostenabrechnung!$H36+Reisekostenabrechnung!P36*0.4*Reisekostenabrechnung!$H36+0.4*Reisekostenabrechnung!$H36*Reisekostenabrechnung!Q36)),IF(T36='AP Auswahlwerte'!$P$2,IF(L36>0,MIN(L36,Reisekostenabrechnung!H36*(0.2*Reisekostenabrechnung!O36+0.4*Reisekostenabrechnung!P36+0.4*Reisekostenabrechnung!Q36)),0),0))))","v":""},{"$f":"IF(B36=\"\",\"\",IF(L36=0,IF($U$5='AP Auswahlwerte'!$I$2,IF(T36<>\"PAUSCHAL\",0,(O36*'AP Auswahlwerte'!$D$3+'AP Auswahlwerte'!$D$4*Reisekostenabrechnung!P36+Reisekostenabrechnung!Q36*'AP Auswahlwerte'!$D$5)),IF($U$5='AP Auswahlwerte'!$I$3,(O36*'AP Auswahlwerte'!$D$3+'AP Auswahlwerte'!$D$4*Reisekostenabrechnung!P36+Reisekostenabrechnung!Q36*'AP Auswahlwerte'!$D$5),\"Auswahl fehlt\")),0))","v":""},"-",{"$f":"(IF(D36-B36=0,0,IF(D36=\"\",0,IF(S36=0,IF(Y36='AP Auswahlwerte'!$A$2,VLOOKUP(G36,Tagessätze!A$4:N$230,4,FALSE),0))*AA36)))","v":0},0]
[null,null,null,null,null,null,"Deutschland",{"$f":"VLOOKUP(G37,Tagessätze!A$4:D$238,2,FALSE)","v":28},{"$f":"VLOOKUP(G37,Tagessätze!A$4:D$238,3,FALSE)","v":14},0,0,"",null,0,null,null,null,0,null,null,null,null,{"$f":"IF(B37=\"\",\"\",IF(Reisekostenabrechnung!$U$5=JA,\"Auswahl fehlt\",IF($U$5='AP Auswahlwerte'!$I$3,MIN(L37,(Reisekostenabrechnung!O37*0.2*Reisekostenabrechnung!$H37+Reisekostenabrechnung!P37*0.4*Reisekostenabrechnung!$H37+0.4*Reisekostenabrechnung!$H37*Reisekostenabrechnung!Q37)),IF(T37='AP Auswahlwerte'!$P$2,IF(L37>0,MIN(L37,Reisekostenabrechnung!H37*(0.2*Reisekostenabrechnung!O37+0.4*Reisekostenabrechnung!P37+0.4*Reisekostenabrechnung!Q37)),0),0))))","v":""},{"$f":"IF(B37=\"\",\"\",IF(L37=0,IF($U$5='AP Auswahlwerte'!$I$2,IF(T37<>\"PAUSCHAL\",0,(O37*'AP Auswahlwerte'!$D$3+'AP Auswahlwerte'!$D$4*Reisekostenabrechnung!P37+Reisekostenabrechnung!Q37*'AP Auswahlwerte'!$D$5)),IF($U$5='AP Auswahlwerte'!$I$3,(O37*'AP Auswahlwerte'!$D$3+'AP Auswahlwerte'!$D$4*Reisekostenabrechnung!P37+Reisekostenabrechnung!Q37*'AP Auswahlwerte'!$D$5),\"Auswahl fehlt\")),0))","v":""},{"$f":"IF(B37=D37,'AP Auswahlwerte'!$A$4,IF(S37>0,'AP Auswahlwerte'!$A$3,'AP Auswahlwerte'!$A$1))","v":"-"},{"$f":"(IF(D37-B37=0,0,IF(D37=\"\",0,IF(S37=0,IF(Y37='AP Auswahlwerte'!$A$2,VLOOKUP(G37,Tagessätze!A$4:N$230,4,FALSE),0))*AA37)))","v":0},0]
["Summe",null,null,null,null,null,null,null,null,null,null,{"$f":"SUM(L12:L37)","v":0},null,{"$f":"SUM(N12:N37)","v":0},null,null,null,null,{"$f":"SUM(S12:S37)","v":0},0,0,0,0,0,null,{"$f":"SUM(Z12:Z37)","v":0}]
[]
[null,"Abrechnung",null,null,null,null,null,null,null,null,null,null,null,null,null,"Auszahlung",null,null,null,null,null,null,"BITTE AUSWÄHLEN"]
[null,"Summe",null,"Verpflegungspauschale",null,null,null,{"$f":"L38","v":0},null,null,null,null,null,null,null,"Barzahlung / aus Kasse",null,null,null,null,null,null,{"$f":"IF($W$40=P41,H51,\"\")","v":""}]
[null,"Summe",null,"Kilometerpauschale",null,null,null,{"$f":"N38","v":0},null,null,null,null,null,null,null,"Überweisung",null,null,null,null,null,null,{"$f":"IF($W$40=P42,H51,\"\")","v":""}]
[null,"Summe",null,"Übernachtung Hotel / Ü-Pauschale (ohne Mahlzeitanteil)",null,null,null,{"$f":"S38+Z38","v":0},null,null,null,null,null,null,null,"Lohn- / Gehaltsabrechnung",null,null,null,null,null,null,{"$f":"IF($W$40=P43,H51,\"\")","v":""}]
[null,"Summe",null,"Mahlzeiten (Hotel)",null,null,null,{"$f":"+T38","v":0}]
[null,"Summe",null,"sonstige Kosten (incl. sonstiger Hotelkosten) lt. gesonderter Anlage",null,null,null,{"$f":"'Sonstige Kosten'!D48+U38","v":0},null,null,null,null,null,null,null,"Ort",null,null,null,null,"Unterschrift\nMitarbeiter"]
[null,"Summe",null,"Reisekosten",null,null,null,{"$f":"SUM(H41:H45)","v":0},null,null,null,null,null,null,null,"Datum"]
[null,"abzgl.",null,"Kürzung Verpflegungspauschale ",null,null,null,{"$f":"IF(U5='AP Auswahlwerte'!I3,-W38,0)","v":0}]
[null,"abzgl.",null,"Kürzung Mahlzeiten Hotel (vom AN zu tragen)",null,null,null,{"$f":"IF(U5='AP Auswahlwerte'!I2,-(T38+W38),0)","v":0},null,null,null,null,null,null,null,"Ort",null,null,null,null,"Unterschrift \nPrüfende"]
[null,"abzgl.",null,"individuell: nicht erstattungsfähige Reisekosten \nlt. Vertrag / Vereinbarung, soweit zunächst berücksichtigt",null,null,null,0,null,null,null,null,null,null,null,"Datum"]
[null,"abzgl.",null,"Vorschuss",null,null,null,0,null,null,null,null,null,null,null,"Ort",null,null,null,null,"Unterschrift\nArbeitgeber"]
[null,"Erstattung / \nNachzahlung (-)",null,null,null,null,null,{"$f":"SUM(H46:H50)","v":0},null,null,null,null,null,null,null,"Datum"]
[null,"Individuelle Versteuerung Sachbezüge beim AN",null,null,null,null,null,{"$f":"IF($U$6='AP Auswahlwerte'!$I$11,Reisekostenabrechnung!X38,0)","v":0}]
[null,"vom Arbeitgeber zu pauschalierende Sachbezüge",null,null,null,null,null,{"$f":"IF($U$6='AP Auswahlwerte'!I12,+X38,)","v":0}]

{"sheet":"Sonstige Kosten","index":2,"n_rows":48,"n_cols":9,"rows_kept":48,"cut":false,"hidden":false,"merged":[[2,5,2,8],[0,0,0,3],[1,0,1,3],[2,0,2,3],[3,5,3,8],[0,5,1,8]]}
[{"$f":"Reisekostenabrechnung!B1","v":"Firmennamen und Anschrift eingeben"},null,null,null,null,"Achtung:"]
["Reisekostenabrechung"]
[{"$f":"Reisekostenabrechnung!B3","v":"Arbeitnehmer: Name eingeben"},null,null,null,null,"Nur von VTP"]
[null,null,null,null,null,"zu bearbeiten!"]
[null,null,null,null,null,"Betrag","VorSt-Schl.","KOST-","Konto"]
["Datum\nTT.MM.JJ","Beleg-\nnummer","Bezeichnung","Betrag",null," ","+ Konto #","Konto",0]
[null,null,null,null,null,{"$f":"D7","v":0},null,null,{"$f":"I6","v":0}]
[null,null,null,null,null,{"$f":"D8","v":0},null,null,{"$f":"I7","v":0}]
[null,null,null,null,null,0,null,null,0]
[null,null,null,null,null,0,null,null,0]
[null,null,null,null,null,0,null,null,0]
[null,null,null,null,null,0,null,null,0]
[null,null,null,null,null,0,null,null,0]
[null,null,null,null,null,0,null,null,0]
[null,null,null,null,null,0,null,null,0]
[null,null,null,null,null,0,null,null,0]
[null,null,null,null,null,0,null,null,0]
[null,null,null,null,null,0,null,null,0]
[null,null,null,null,null,0,null,null,0]
[null,null,null,null,null,0,null,null,0]
[null,null,null,null,null,0,null,null,0]
[null,null,null,null,null,0,null,null,0]
[null,null,null,null,null,0,null,null,0]
[null,null,null,null,null,0,null,null,0]
[null,null,null,null,null,0,null,null,0]
[null,null,null,null,null,0,null,null,0]
[null,null,null,null,null,0,null,null,0]
[null,null,null,null,null,0,null,null,0]
[null,null,null,null,null,0,null,null,0]
[null,null,null,null,null,0,null,null,0]
[null,null,null,null,null,0,null,null,0]
[null,null,null,null,null,0,null,null,0]
[null,null,null,null,null,0,null,null,0]
[null,null,null,null,null,0,null,null,0]
[null,null,null,null,null,0,null,null,0]
[null,null,null,null,null,0,null,null,0]
[null,null,null,null,null,0,null,null,0]
[null,null,null,null,null,0,null,null,0]
[null,null,null,null,null,0,null,null,0]
[null,null,null,null,null,0,null,null,0]
[null,null,null,null,null,0,null,null,0]
[null,null,null,null,null,0,null,null,0]
[null,null,null,null,null,0,null,null,0]
[null,null,null,null,null,0,null,null,0]
[null,null,null,null,null,0,null,null,0]
[null,null,null,null,null,0,null,null,0]
[null,null,null,null,null,0,null,null,0]
["Summe",null,null,{"$f":"SUM(D7:D47)","v":0}]

{"sheet":"Tagessätze","index":3,"n_rows":238,"n_cols":6,"rows_kept":238,"cut":false,"hidden":true,"merged":[[0,0,2,0],[0,1,0,2],[0,3,1,3]]}
["Land"," Pauschbeträge  für Verpflegungsmehraufwendungen\nbei  einer Abwesenheitsdauer je Kalendertag von",null,"Pauschbetrag  für \nÜbernachtungskosten"]
[null,"mind. 24 Stunden","weniger als 24, \naber mind. 8 Stunden"]
[null,"EUR","EUR","EUR"]
["Deutschland",28,14,20,null,"Übersicht über die ab 1. Januar 2026 geltenden Pauschbeträge für"]
["Afghanistan",30,20,95,null,"Verpflegungsmehraufwendungen und Übernachtungskosten im Ausland"]
["Ägypten",50,33,112]
["Äthiopien",44,29,159]
["Äquatorialguinea",42,28,166,null,"BMF-Schreiben vom 5. Dezember 2025"]
["Albanien",33,22,116]
["Algerien",47,32,120]
["Andorra",45,30,135]
["Angola",40,27,368]
["Antigua und Barbuda",66,44,203,null,"Pauschale Trinidad Tobago"]
["Argentinien",42,28,119]
["Armenien",29,20,107]
["Aserbaidschan",44,29,88]
["Australien - Canberra",74,49,186]
["Australien - Sydney",57,38,173]
["Australien - im Übrigen",57,38,173]
["Bahrain",48,32,153]
["Bangladesch",46,31,189]
["Barbados",54,36,206]
["Belgien",59,40,141]
["Benin",40,27,168]
["Bhutan",27,18,176]
["Bolivien",46,31,108]
["Bosnien und Herzegowina",32,21,109]
["Botsuana",40,27,105]
["Brasilien - Brasilia",51,34,88]
["Brasilien - Rio de Janeiro",69,46,140]
["Brasilien - Sao Paulo",46,31,151]
["Brasilien - im Übrigen",46,31,88]
["Brunei",45,30,110]
["Bulgarien",38,25,109]
["Burkina Faso",39,26,230]
["Burundi",58,39,102]
["Chile",44,29,154]
["China - Chengdu",41,28,131]
["China - Hongkong",83,56,209]
["China - Kanton",36,24,150]
["China - Peking",57,38,184]
["China - Shanghai",48,32,142]
["China - im Übrigen",48,32,142]
["Costa Rica",60,40,127]
["Côte d’Ivoire",60,40,171]
["Dänemark",75,50,183]
["Dominica",66,44,203,null,"Pauschale Trinidad Tobago"]
["Dominikanische Republik",50,33,167]
["Dschibuti",77,52,255]
["Ecuador",27,18,103]
["El Salvador",65,44,161]
["Eritrea",46,31,78]
["Estland",39,26,125]
["Fidschi",32,21,183]
["Finnland",54,36,171]
["Frankreich – Paris sowie Departem. 77, 78, 91 bis 95",58,39,159]
["Frankreich – im Übrigen",53,36,105]
["Gabun",64,43,263]
["Gambia",40,27,161]
["Georgien",45,30,87]
["Ghana",46,31,203]
["Grenada",66,44,203,null,"Pauschale Trinidad Tobago"]
["Grenadinen",66,44,203,null,"Pauschale Trinidad Tobago"]
["Griechenland – Athen",40,27,139]
["Griechenland – im Übrigen",36,24,150]
["Guatemala",46,31,124]
["Guinea",59,40,140]
["Guinea-Bissau",32,21,113]
["Guyana",66,44,203,null,"Pauschale Trinidad Tobago"]
["Haiti",58,39,130]
["Honduras",57,38,198]
["Indien - Bangalore",42,28,155]
["Indien - Chennai",22,15,80]
["Indien - Kalkutta",32,21,167]
["Indien - Mumbai",53,36,218]
["Indien - Neu Delhi",46,31,211]
["Indien- im Übrigen",22,15,80]
["Indonesien",45,30,179]
["Iran",33,22,196]
["Irland",64,43,164]
["Island",62,41,187]
["Israel",59,40,268]
["Italien - Mailand",42,28,191]
["Italien - Rom",48,32,150]
["Italien - im Übrigen",42,28,150]
["Jamaika",39,26,171]
["Japan - Tokio",50,33,285]
["Japan - Osaka",33,22,141]
["Japan - im Übrigen",33,22,141]
["Jemen",44,30,173]
["Jordanien",57,38,134]
["Kambodscha",42,28,108]
["Kamerun",56,37,275]
["Kanada - Ottawa",62,41,214]
["Kanada - Toronto",54,36,392]
["Kanada - Vancouver",63,42,304]
["Kanada - im Übrigen",54,36,214]
["Kap Verde",38,25,90]
["Kasachstan",33,22,108]
["Katar",81,54,128]
["Kenia",48,32,217]
["Kirgisistan",35,24,80]
["Kolumbien",34,23,123]
["Kongo, Republik",53,36,215]
["Kongo, Demokratische Republik",65,44,337]
["Korea, Demokratische Volksrepublik",28,19,92]
["Korea, Republik",39,26,130]
["Kosovo",24,16,71]
["Kroatien",46,31,191]
["Kuba",51,34,170]
["Kuwait",63,42,224]
["Laos",35,24,71]
["Lesotho",28,19,104]
["Lettland",46,31,119]
["Libyen",63,42,135]
["Libanon",69,46,146]
["Liberia",65,44,173]
["Liechtenstein",57,38,234]
["Litauen",48,32,124]
["Luxemburg",63,42,139]
["Madagaskar",33,22,116]
["Malawi",41,28,109]
["Malaysia",36,24,86]
["Malediven",70,47,200]
["Mali",42,28,141]
["Malta",59,40,191]
["Marokko",41,28,87]
["Marshall Inseln",45,30,112]
["Mauretanien",35,24,86]
["Mauritius",44,29,172]
["Mexiko",40,27,337]
["Mikronesien",41,28,140]
["Moldau, Republik",26,17,73]
["Monaco",52,35,187]
["Mongolei",23,16,92]
["Montenegro",32,21,85]
["Mosambik",51,34,208]
["Myanmar",23,16,103]
["Namibia",28,19,146]
["Nepal",33,22,125]
["Neuseeland",58,39,148]
["Nicaragua",46,31,105]
["Niederlande",58,39,167]
["Niger",42,28,131]
["Nigeria",52,35,202]
["Nordmazedonien",27,18,89]
["Norwegen",75,50,139]
["Österreich",50,33,117]
["Oman",64,43,141]
["Pakistan - Islamabad",56,37,145]
["Pakistan - im Übrigen",41,28,199]
["Palau",51,34,193]
["Panama",41,28,82]
["Papua-Neuguinea",59,40,159]
["Paraguay",39,26,124]
["Peru",52,35,128]
["Philippinen",41,28,140]
["Polen – Breslau",34,23,124]
["Polen – Warschau",40,27,143]
["Polen – im Übrigen",34,23,124]
["Portugal",32,21,111]
["Ruanda",44,29,117]
["Rumänien – Bukarest",38,25,103]
["Rumänien – im Übrigen",38,25,94]
["Russische Föderation - Moskau ",30,20,235]
["Russische Föderation - St. Petersburg",28,19,133]
["Russische Föderation - im Übrigen",28,19,133]
["Sambia",38,25,105]
["Samoa",39,26,105]
["San Marino",34,23,79]
["São Tomé – Príncipe",36,24,147]
["Saudi-Arabien - Djidda",57,38,181]
["Saudi-Arabien - Riad",56,37,186]
["Saudi-Arabien - im Übrigen",56,37,181]
["Schweden",66,44,140]
["Schweiz - Genf",70,47,197]
["Schweiz - im Übrigen",70,47,195]
["Senegal",48,32,160]
["Serbien",27,18,97]
["Sierra Leone",57,38,145]
["Simbabwe",63,42,198]
["Singapur",71,48,277]
["Slowakische Republik",33,22,121]
["Slowenien",38,25,126]
["Spanien - Barcelona",34,23,144]
["Spanien - Kanarische Inseln",36,24,103]
["Spanien – Madrid",42,28,131]
["Spanien - Palma de Mallorca",44,29,142]
["Spanien - im Übrigen",34,23,103]
["Sri Lanka",36,24,112]
["St. Kitts und Nevis",66,44,203,null,"Pauschale Trinidad Tobago"]
["St. Lucia",66,44,203,null,"Pauschale Trinidad Tobago"]
["St. Vincent und die Grenadinen",66,44,203,null,"Pauschale Trinidad Tobago"]
["Sudan",33,22,195]
["Südafrika - Kapstadt",33,22,130]
["Südafrika - Johannisburg",36,24,129]
["Südafrika - im Übrigen",29,20,109]
["Südsudan",51,34,159]
["Suriname",66,44,203,null,"Pauschale Trinidad Tobago"]
["Syrien",38,13,140]
["Tadschikistan",27,18,85]
["Taiwan",51,34,174]
["Tansania",44,29,97]
["Thailand",36,24,114]
["Togo",36,24,144]
["Tonga",29,20,102]
["Trinidad und Tobago",66,44,203]
["Tschad",42,28,155]
["Tschechische Republik",32,21,77]
["Türkei - Ankara",32,21,110]
["Türkei - Izmir",44,29,120]
["Türkei - im Übrigen",24,16,107]
["Tunesien",40,27,144]
["Turkmenistan",28,19,135]
["Uganda",45,30,207]
["Ukraine",33,22,180]
["Ungarn",32,21,85]
["Uruguay",40,27,113]
["Usbekistan",32,21,133]
["Vatikanstaat",48,32,150]
["Venezuela",51,34,178]
["Vereinigte Arabische Emirate",81,54,169]
["Vereinigte Staaten von Amerika - Atlanta",77,52,182]
["Vereinigte Staaten von Amerika - Boston",63,42,333]
["Vereinigte Staaten von Amerika - Chicago",65,44,233]
["Vereinigte Staaten von Amerika - Houston",62,41,204]
["Vereinigte Staaten von Amerika - Los Angeles",64,43,262]
["Vereinigte Staaten von Amerika - Miami",65,44,256]
["Vereinigte Staaten von Amerika - New York Stadt",66,44,308]
["Vereinigte Staaten von Amerika - San Francisco",59,40,327]
["Vereinigte Staaten von Amerika - Washington",66,44,203]
["Vereinigte Staaten von Amerika - im Übrigen",59,40,182]
["Vereinigtes Königreich von Großbritannien und Nordirland - London",66,44,163]
["Vereinigtes Königreich von Großbritannien und Nordirland - im Übrigen",52,35,99]
["Vietnam",36,24,111]
["Weißrussland",21,14,148]
["Zentralafrikanische Republik",53,36,210]
["Zypern",42,28,125]

{"sheet":"AP Auswahlwerte","index":4,"n_rows":13,"n_cols":18,"rows_kept":13,"cut":false,"hidden":true,"merged":[]}
["BITTE AUSWÄHLEN",null,"Sachbezugswerte 2026",null,"pauschale Kürzung Pauschale 24h",null,null,null,"BITTE AUSWÄHLEN",null,null,null,null,null,null,"OHNE Verpfleg.",null,"BITTE AUSWÄHLEN"]
["JA",null,null,null,"wenn fehlender Ausweis in Rechnung",null,null,null,"Arbeitnehmer werden tatsächliche Verpflegungskosten erstattet; bei Pauschalen erfolgt Kürzung 20%/40%/40% des VMA.",null,null,null,null,null,null,"PAUSCHAL",null,"Barzahlung / aus Kasse"]
["NEIN",null,"FRÜHSTÜCK",2.37,0.2,null,null,null,"Zahlung der steuerfreien Pauschale (mit prozentualer Kürzung für Mahlzeiten) ",null,null,null,null,null,null,"Betrag?",null,"Überweisung"]
["-",null,"MITTAGESSEN",4.57,0.4,null,null,null,null,null,null,null,null,null,null,null,null,"Lohn- / Gehaltsabrechnung"]
[null,null,"ABENDESSEN",4.57,0.4]
[]
["Übernachtungspauschale"]
[0,"Nein"]
[1,"JA",null,null,null,null,null,null,"BITTE AUSWÄHLEN"]
[null,null,null,null,null,null,null,null,"Entfällt (mangels Kosten, Erstattung oder steuerpfl. Mahlzeiten)"]
["Fahrzeug",null,null,null,null,null,null,null,"Individuelle Versteuerung des Sachbezugswertes durch AN"]
["Kfz",0.3,null,null,null,null,null,null,"Pauschale Versteuerung des Sachbezugswertes durch AG"]
["sonst.Motorisierung",0.2]

{"sheet":"Sonstige Kosten - Auswahl","index":5,"n_rows":17,"n_cols":1,"rows_kept":17,"cut":false,"hidden":true,"merged":[]}
["Parken"]
["Tanken"]
["Taxi"]
["Bewirtung Arbeitnehmer"]
["Bewirtung Geschäftsfreunde"]
["Bürobedarf"]
["EDV-Bedarf"]
["Geschenke bis 50 Euro"]
["Geschenke über 50 Euro"]
["Kfz-Reparatur"]
["Mautgebühren"]
["Porto"]
["Sonstige laufende Kfz-Kosten"]
["Sonstiges"]
[]
[]
["ausblenden"]